fUSD/lending_fUSD_20250816
["ID","MTS","AMOUNT","RATE_DAILY","PERIOD"]
[379481225,1755311468523,-305.78293508,0.00017573,2]
[379481226,1755311476039,-105.78293508,0.00017573,2]
[379481227,1755311476067,-88.43412984,0.00017573,2]
[379481228,1755311483056,-287.02,0.00017578,2]
[379481229,1755311486773,205.72619285,0.00017478,2]
[379481230,1755311526304,-55.35346437,0.00017578,2]
[379481231,1755311526353,-86.58970261,0.00017739,2]
[379481232,1755311534168,-203.79306732,0.00017739,2]
[379481233,1755311715471,-445.06,0.00017535,2]
[379481234,1755311722253,-280.82679052,0.00017535,2]
[379481235,1755311729967,-224.33394456,0.00017535,2]
[379481236,1755311773879,-49.77926492,0.00017535,2]
[379481237,1755311774084,-200.44147016,0.00017637,2]
[379481238,1755311781105,-283.42931458,0.00017637,2]
[379481239,1755311791218,284.0,0.00026,30]
[379481240,1755311823865,170.0,0.00017486,7]
[379481241,1755311900172,200.0,0.00017464,2]
[379481242,1755312133798,-246.83254067,0.00017691,2]
[379481243,1755312191341,324.78,0.00013699,2]
[379481245,1755312242608,28730.89000864,0.00026,30]
[379481246,1755312306621,156.13716837,0.00017088,2]
[379481247,1755312306693,150.0,0.00017088,2]
[379481248,1755312306795,158.29782638,0.00017088,2]
[379481249,1755312313999,155.9355646,0.00017088,2]
[379481250,1755312314212,151.88889096,0.00017088,2]
[379481251,1755312314273,154.1958189,0.00017088,2]
[379481252,1755312320556,150.0,0.00017088,2]
[379481253,1755312326003,152.86709885,0.00017088,2]
[379481254,1755312327506,152.96277846,0.00017088,2]
[379481256,1755312425739,157.52,0.00024685,30]
[379481274,1755312469785,1395.07266721,0.00025999,30]
[379481275,1755312490806,-70.86,0.00017579,2]
[379481276,1755312490831,-79.14,0.00017579,2]
[379481277,1755312499942,-243.42703241,0.00017635,2]
[379481282,1755312606074,200.0,0.00017399,2]
[379481294,1755312632495,-6.57296759,0.00017635,2]
[379481295,1755312632504,-4266.32558905,0.000178,2]
[379481296,1755312632522,-54492.87353736,0.000178,2]
[379481297,1755312632533,-979.90450245,0.000178,2]
[379481298,1755312632549,-3184.53968235,0.000178,2]
[379481299,1755312632560,-129356.34775057,0.000178,2]
[379481300,1755312632571,-465.84208174,0.000178,2]
[379481301,1755312632593,-4446.2799999,0.000178,2]
[379481302,1755312632604,-5880.0,0.000178,2]
[379481303,1755312632614,-1800.0,0.000178,2]
[379481304,1755312632625,-1300.0,0.000178,2]
[379481305,1755312632637,-427.92221897,0.000178,2]
[379481306,1755312632647,-42962.85118283,0.000178,2]
[379481307,1755312632656,-43056.89591546,0.000178,2]
[379481308,1755312632667,-954.173004,0.000178,2]
[379481312,1755312632699,-468.91119907,0.000178,2]
[379481315,1755312632710,-6917.00780098,0.000178,2]
[379481318,1755312632729,-287.8619546,0.000178,2]
[379481320,1755312632741,-1552.46909226,0.000178,2]
[379481334,1755312638359,-825.193057,0.000178,2]
[379481335,1755312638371,-283.266,0.000178,2]
[379481336,1755312638382,-948.74718367,0.000178,2]
[379481337,1755312638466,-330.05022712,0.000178,2]
[379481338,1755312638520,-282.23840945,0.000178,2]
[379481339,1755312638532,-865.69,0.000178,2]
[379481340,1755312638573,-940.97832574,0.000178,2]
[379481341,1755312638628,-393.69097478,0.000178,2]
[379481342,1755312638640,-301.538417,0.000178,2]
[379481343,1755312638651,-7459.99265764,0.000178,2]
[379481344,1755312638682,-2450.01510591,0.000178,2]
[379481345,1755312638736,-132118.3941301,0.000178,2]
[379481346,1755312638746,-200.0,0.000179,6]
[379481347,1755312638756,-500.0,0.00018,6]
[379481348,1755312638766,-150.0,0.00018037,2]
[379481349,1755312638780,-291.25818947,0.0001807,2]
[379481350,1755312638791,-221.0,0.00018071,2]
[379481351,1755312638801,-300.0,0.00018099,2]
[379481352,1755312638812,-1200.0,0.00018099,2]
[379481353,1755312638823,-512.60320656,0.00018099,2]
[379481354,1755312638833,-159.07062365,0.00018099,2]
[379481355,1755312638843,-162.73145421,0.00018099,2]
[379481356,1755312638853,-278.44732515,0.00018099,2]
[379481357,1755312638863,-1077.66,0.000181,2]
[379481358,1755312638873,-360.24,0.000181,2]
[379481359,1755312638883,-538.83,0.000181,2]
[379481360,1755312638894,-360.24,0.000181,2]
[379481361,1755312638904,-538.83,0.000181,2]
[379481362,1755312638914,-360.24,0.000181,2]
[379481363,1755312638924,-798.2,0.000181,2]
[379481364,1755312638934,-300.0,0.000181,2]
[379481365,1755312638944,-300.7,0.000181,2]
[379481366,1755312638954,-245.84,0.000181,2]
[379481367,1755312638964,-360.29,0.000181,2]
[379481369,1755312638974,-150.0,0.000181,2]
[379481371,1755312638984,-798.34,0.000181,2]
[379481373,1755312638993,-150.0,0.000181,2]
[379481374,1755312639003,-798.34,0.000181,2]
[379481376,1755312639013,-360.29,0.000181,2]
[379481378,1755312639023,-150.0,0.000181,2]
[379481380,1755312639033,-800.0,0.000181,6]
[379481382,1755312639043,-221.0,0.00018108,2]
[379481384,1755312639052,-277.35679052,0.00018189,2]
[379481387,1755312639062,-798.34,0.000182,2]
[379481389,1755312639072,-360.29,0.000182,2]
[379481391,1755312639082,-1077.24,0.000182,2]
[379481393,1755312639092,-723.21,0.000182,2]
[379481395,1755312639102,-798.34,0.000182,2]
[379481397,1755312639111,-300.0,0.000182,2]
[379481399,1755312639122,-545.98,0.000182,2]
[379481401,1755312639132,-1347.1,0.000182,2]
[379481403,1755312639142,-150.0,0.000182,2]
[379481405,1755312639152,-538.83,0.000182,2]
[379481407,1755312639162,-300.02,0.000182,2]
[379481410,1755312639173,-300.73,0.000182,2]
[379481412,1755312639184,-720.48,0.000182,2]
[379481414,1755312639198,-15423.12629391,0.000182,2]
[379481416,1755312639207,-1000.0,0.000182,6]
[379481418,1755312639218,-221.0,0.00018227,2]
[379481420,1755312639228,-173.45,0.000183,2]
[379481422,1755312639239,-173.45,0.000183,2]
[379481424,1755312639249,-1077.66,0.000183,2]
[379481426,1755312639258,-1300.0,0.000183,6]
[379481428,1755312639268,-500.0,0.00018301,2]
[379481430,1755312639278,-200.0,0.000184,6]
[379481432,1755312639288,-160.0,0.00018408,2]
[379481434,1755312639298,-211.95758554,0.00018408,2]
[379481436,1755312639308,-221.0,0.00018438,2]
[379481438,1755312639317,-6771.87,0.0001845,2]
[379481440,1755312639327,-3228.13,0.0001845,2]
[379481442,1755312639336,-500.0,0.0001845,2]
[379481444,1755312639346,-500.0,0.0001845,2]
[379481446,1755312639356,-1722.0,0.0001845,2]
[379481448,1755312639366,-300.0,0.0001845,2]
[379481451,1755312639377,-150.0,0.0001845,2]
[379481453,1755312639386,-3694.1723,0.00018466,2]
[379481455,1755312639395,-466.12,0.00018471,2]
[379481457,1755312639405,-416.97465651,0.00018483,2]
[379481459,1755312639414,-236.92615445,0.00018483,2]
[379481461,1755312639424,-151.0,0.00018483,2]
[379481463,1755312639434,-151.0,0.00018483,2]
[379481464,1755312639445,-151.0,0.00018483,2]
[379481465,1755312639454,-151.0,0.00018483,2]
[379481466,1755312639464,-151.0,0.00018483,2]
[379481467,1755312639473,-151.0,0.00018483,2]
[379481468,1755312639483,-160.0,0.00018483,2]
[379481469,1755312639492,-151.0,0.00018483,2]
[379481470,1755312639502,-500.0,0.00018483,2]
[379481471,1755312639511,-151.0,0.00018483,2]
[379481472,1755312639521,-500.0,0.00018483,2]
[379481473,1755312639531,-151.0,0.00018483,2]
[379481474,1755312639540,-500.0,0.00018483,2]
[379481475,1755312639549,-151.0,0.00018483,2]
[379481476,1755312639559,-500.0,0.00018483,2]
[379481477,1755312639569,-151.0,0.00018483,2]
[379481478,1755312639579,-500.0,0.00018483,2]
[379481479,1755312639588,-151.0,0.00018483,2]
[379481480,1755312639598,-500.0,0.00018483,2]
[379481482,1755312639608,-151.0,0.00018483,2]
[379481483,1755312639618,-500.0,0.00018483,2]
[379481485,1755312639628,-500.0,0.00018483,2]
[379481487,1755312639638,-151.0,0.00018483,2]
[379481490,1755312639647,-500.0,0.00018483,2]
[379481492,1755312639659,-151.0,0.00018483,2]
[379481494,1755312639668,-500.0,0.00018483,2]
[379481496,1755312639678,-151.0,0.00018483,2]
[379481498,1755312639688,-151.0,0.00018483,2]
[379481500,1755312639698,-500.0,0.00018483,2]
[379481502,1755312639707,-151.0,0.00018483,2]
[379481504,1755312639717,-596.87661168,0.00018483,2]
[379481506,1755312639727,-151.0,0.00018483,2]
[379481508,1755312639737,-500.0,0.00018483,2]
[379481510,1755312639747,-151.0,0.00018483,2]
[379481512,1755312639756,-500.0,0.00018483,2]
[379481515,1755312639773,-500.0,0.00018483,2]
[379481517,1755312639783,-500.0,0.00018483,2]
[379481519,1755312639793,-500.0,0.00018483,2]
[379481521,1755312639802,-500.0,0.00018483,2]
[379481523,1755312639812,-500.0,0.00018483,2]
[379481525,1755312639821,-500.0,0.00018483,2]
[379481527,1755312639830,-570.25134665,0.00018483,2]
[379481529,1755312639840,-600.0,0.00018483,2]
[379481531,1755312639849,-250.0,0.00018483,2]
[379481533,1755312639859,-600.0,0.00018483,2]
[379481534,1755312639869,-250.0,0.00018483,2]
[379481537,1755312639880,-600.0,0.00018483,2]
[379481538,1755312639890,-250.0,0.00018483,2]
[379481540,1755312639900,-600.0,0.00018483,2]
[379481542,1755312639910,-250.0,0.00018483,2]
[379481544,1755312639920,-600.0,0.00018483,2]
[379481546,1755312639930,-250.0,0.00018483,2]
[379481548,1755312639940,-366.7842523,0.00018483,2]
[379481550,1755312639950,-250.0,0.00018483,2]
[379481552,1755312639960,-250.0,0.00018483,2]
[379481554,1755312639970,-250.0,0.00018483,2]
[379481556,1755312639979,-500.0,0.00018483,2]
[379481558,1755312639988,-263.20365494,0.00018483,2]
[379481560,1755312639999,-500.0,0.00018483,2]
[379481562,1755312640008,-500.0,0.00018483,2]
[379481564,1755312640018,-500.0,0.00018483,2]
[379481566,1755312640027,-500.0,0.00018483,2]
[379481568,1755312640037,-500.0,0.00018483,2]
[379481570,1755312640047,-500.0,0.00018483,2]
[379481572,1755312640056,-500.0,0.00018483,2]
[379481574,1755312640066,-500.0,0.00018483,2]
[379481576,1755312640075,-500.0,0.00018483,2]
[379481578,1755312640085,-500.0,0.00018483,2]
[379481580,1755312640094,-151.0,0.00018483,2]
[379481582,1755312640104,-151.0,0.00018483,2]
[379481584,1755312640113,-151.0,0.00018483,2]
[379481586,1755312640122,-151.0,0.00018483,2]
[379481588,1755312640132,-298.78759814,0.00018483,2]
[379481590,1755312640141,-167.79092522,0.000185,2]
[379481592,1755312640151,-1000.0,0.000185,2]
[379481594,1755312640160,-2500.0,0.000185,2]
[379481596,1755312640169,-1007.98333575,0.000185,2]
[379481598,1755312640179,-200.0,0.000185,6]
[379481600,1755312640192,-500.0,0.00018538,2]
[379481602,1755312640201,-1007.98333568,0.00018544,2]
[379481605,1755312640211,-167.79092521,0.00018567,2]
[379481607,1755312640220,-1007.98333568,0.00018589,2]
[379481609,1755312640232,-523.68315644,0.00018593,2]
[379481611,1755312640241,-518.02,0.00018599,2]
[379481613,1755312640251,-33354.7716,0.000186,2]
[379481615,1755312640263,-190367.7682,0.000186,2]
[379481617,1755312640274,-632.0213,0.000186,2]
[379481619,1755312640284,-14089.4508895,0.000186,2]
[379481621,1755312640294,-168.3294229,0.000186,2]
[379481623,1755312640304,-1009.0,0.000186,2]
[379481625,1755312640313,-200.0,0.000186,6]
[379481627,1755312640323,-4999.98,0.00018602,2]
[379481629,1755312640333,-10000.02,0.00018602,2]
[379481631,1755312640342,-200.0,0.00018619,2]
[379481634,1755312640354,-1000.0,0.0001863,2]
[379481636,1755312640363,-221.0,0.00018632,2]
[379481638,1755312640373,-167.79092521,0.00018633,2]
[379481640,1755312640383,-14089.4508895,0.00018633,2]
[379481642,1755312640392,-1007.98333568,0.00018633,2]
[379481644,1755312640402,-168.32942288,0.00018643,2]
[379481646,1755312640411,-164.19957238,0.00018651,2]
[379481648,1755312640420,-164.19957238,0.00018652,2]
[379481650,1755312640431,-4887.89777337,0.00018652,2]
[379481652,1755312640440,-140114.11944692,0.00018652,2]
[379481654,1755312640450,-4887.89777337,0.00018659,2]
[379481656,1755312640459,-176.49099772,0.00018661,2]
[379481658,1755312640468,-2975.10465119,0.00018665,2]
[379481660,1755312640478,-140114.11944692,0.00018666,2]
[379481662,1755312640487,-14089.4508895,0.00018667,2]
[379481664,1755312640496,-3516.33391476,0.00018672,2]
[379481666,1755312640505,-207.63326581,0.00018672,2]
[379481668,1755312640515,-237.0,0.00018676,2]
[379481670,1755312640524,-1007.98333568,0.00018678,2]
[379481672,1755312640533,-995.1901,0.00018679,2]
[379481674,1755312640542,-345.06040998,0.00018679,2]
[379481676,1755312640552,-140114.11944692,0.00018682,2]
[379481678,1755312640561,-343.39286386,0.00018685,2]
[379481680,1755312640571,-168.32942288,0.00018686,2]
[379481682,1755312640580,-46373.90880425,0.00018686,2]
[379481684,1755312640589,-4887.89777337,0.00018687,2]
[379481686,1755312640599,-3516.33391476,0.0001869,2]
[379481688,1755312640608,-4887.89777337,0.00018694,2]
[379481690,1755312640617,-293.53792294,0.00018695,2]
[379481692,1755312640626,-5801.57703742,0.00018695,2]
[379481694,1755312640635,-293.53792294,0.00018698,2]
[379481696,1755312640645,-3516.33391476,0.00018698,2]
[379481698,1755312640654,-140114.11944692,0.00018699,2]
[379481700,1755312640663,-3516.33391476,0.00018699,2]
[379481701,1755312640673,-4000.0,0.00018699,2]
[379481704,1755312640684,-3516.33391476,0.000187,2]
[379481706,1755312640695,-151.0,0.000187,2]
[379481708,1755312640704,-153.36617,0.000187,2]
[379481710,1755312640713,-167.79092521,0.000187,2]
[379481712,1755312640723,-12000.0,0.000187,2]
[379481714,1755312640732,-12000.0,0.000187,2]
[379481716,1755312640741,-12000.0,0.000187,2]
[379481718,1755312640751,-12000.0,0.000187,2]
[379481720,1755312640760,-12000.0,0.000187,2]
[379481722,1755312640770,-12000.0,0.000187,2]
[379481724,1755312640780,-12000.0,0.000187,2]
[379481726,1755312640790,-12000.0,0.000187,2]
[379481728,1755312640799,-320.34414008,0.000187,2]
[379481730,1755312640808,-151.0,0.000187,2]
[379481732,1755312640817,-151.0,0.000187,2]
[379481734,1755312640826,-237.438501,0.000187,2]
[379481736,1755312640836,-237.438501,0.000187,2]
[379481738,1755312640845,-237.438501,0.000187,2]
[379481740,1755312640855,-237.438501,0.000187,2]
[379481742,1755312640865,-14089.4508895,0.000187,2]
[379481744,1755312640874,-200.0,0.000187,6]
[379481746,1755312640883,-1374.8645283,0.000187,2]
[379481748,1755312640893,-3659.09860262,0.000187,2]
[379481750,1755312640903,-46373.90880425,0.00018701,2]
[379481752,1755312640912,-164.19957238,0.00018702,2]
[379481754,1755312640922,-158.60210434,0.00018703,2]
[379481755,1755312640931,-2975.10465119,0.00018703,2]
[379481758,1755312640941,-4887.89777337,0.00018704,2]
[379481759,1755312640955,-903.0,0.00018704,2]
[379481761,1755312640965,-1255.0,0.00018704,2]
[379481763,1755312640975,-2029.0,0.00018704,2]
[379481765,1755312640984,-3371.0,0.00018704,2]
[379481767,1755312640994,-1656.0,0.00018704,2]
[379481770,1755312641004,-599.0,0.00018704,2]
[379481772,1755312641013,-1297.0,0.00018704,2]
[379481774,1755312641023,-566.0,0.00018704,2]
[379481776,1755312641032,-1172.0,0.00018704,2]
[379481778,1755312641041,-6089.0,0.00018704,2]
[379481780,1755312641050,-717.0,0.00018704,2]
[379481782,1755312641059,-4150.0,0.00018704,2]
[379481784,1755312641068,-343.39286386,0.00018705,2]
[379481786,1755312641077,-293.53792294,0.00018706,2]
[379481788,1755312641086,-158.60210434,0.00018707,2]
[379481790,1755312641096,-3516.33391476,0.00018707,2]
[379481792,1755312641107,-2975.10465119,0.00018707,2]
[379481794,1755312641116,-632.02131,0.0001871,2]
[379481796,1755312641126,-4887.89777337,0.00018711,2]
[379481798,1755312641135,-46373.90880425,0.00018714,2]
[379481800,1755312641144,-176.49099772,0.00018714,2]
[379481802,1755312641153,-343.39286386,0.00018715,2]
[379481804,1755312641162,-345.06040996,0.00018716,2]
[379481806,1755312641172,-5801.57703742,0.00018716,2]
[379481808,1755312641181,-140114.11944692,0.00018717,2]
[379481810,1755312641194,-46373.90880425,0.00018718,2]
[379481812,1755312641203,-3516.33391476,0.0001872,2]
[379481814,1755312641212,-176.49099772,0.00018722,2]
[379481816,1755312641222,-1007.98333568,0.00018722,2]
[379481818,1755312641232,-343.39286386,0.00018722,2]
[379481820,1755312641241,-4887.89777337,0.00018724,2]
[379481822,1755312641250,-221.0,0.00018724,2]
[379481824,1755312641259,-500.0,0.00018724,2]
[379481826,1755312641270,-500.0,0.00018724,2]
[379481828,1755312641279,-1722.0,0.00018724,2]
[379481830,1755312641288,-293.53792294,0.00018724,2]
[379481832,1755312641297,-293.53792294,0.00018724,2]
[379481834,1755312641307,-164.19957238,0.00018728,2]
[379481836,1755312641316,-168.32942288,0.00018729,2]
[379481838,1755312641325,-2027.3,0.0001873,2]
[379481840,1755312641334,-5801.57703742,0.00018731,2]
[379481842,1755312641345,-158.60210434,0.00018732,2]
[379481844,1755312641354,-140114.11944692,0.00018732,2]
[379481846,1755312641363,-164.19957238,0.00018733,2]
[379481848,1755312641372,-14089.4508895,0.00018733,2]
[379481850,1755312641382,-158.60210434,0.00018736,2]
[379481852,1755312641393,-207.63326581,0.00018736,2]
[379481854,1755312641403,-2975.10465119,0.00018736,2]
[379481856,1755312641413,-158.60210434,0.00018739,2]
[379481858,1755312641422,-2975.10465119,0.00018743,2]
[379481860,1755312641431,-643.401,0.00018744,2]
[379481862,1755312641442,-5801.57703742,0.00018745,2]
[379481864,1755312641451,-164.19957238,0.00018746,2]
[379481866,1755312641461,-5801.57703742,0.00018747,2]
[379481868,1755312641470,-176.49099772,0.00018748,2]
[379481870,1755312641479,-2975.10465119,0.00018749,2]
[379481872,1755312641489,-345.06040996,0.00018753,2]
[379481874,1755312641499,-293.53792294,0.00018755,2]
[379481876,1755312641509,-2027.3,0.00018755,2]
[379481878,1755312641518,-5801.57703742,0.00018755,2]
[379481880,1755312641527,-176.49099772,0.00018757,2]
[379481882,1755312641536,-158.60210434,0.00018758,2]
[379481884,1755312641546,-343.39286386,0.0001876,2]
[379481886,1755312641555,-293.53792294,0.00018764,2]
[379481888,1755312641565,-2975.10465119,0.00018766,2]
[379481890,1755312641574,-167.79092521,0.00018767,2]
[379481892,1755312641583,-14089.4508895,0.00018767,2]
[379481894,1755312641592,-1007.98333568,0.00018767,2]
[379481896,1755312641601,-140114.11944692,0.0001877,2]
[379481898,1755312641611,-25962.8884683,0.0001877,2]
[379481900,1755312641620,-168.32942288,0.00018771,2]
[379481902,1755312641629,-46373.90880425,0.00018772,2]
[379481904,1755312641638,-5801.57703742,0.00018772,2]
[379481906,1755312641647,-325977.0,0.00018772,2]
[379481908,1755312641656,-34725.6059438,0.00018772,2]
[379481910,1755312641665,-500.0,0.00018773,2]
[379481912,1755312641674,-500.0,0.00018773,2]
[379481914,1755312641683,-509.50250893,0.00018773,2]
[379481916,1755312641692,-500.0,0.00018773,2]
[379481918,1755312641702,-500.0,0.00018773,2]
[379481920,1755312641711,-500.0,0.00018773,2]
[379481922,1755312641720,-500.0,0.00018773,2]
[379481924,1755312641729,-500.0,0.00018773,2]
[379481926,1755312641738,-500.0,0.00018773,2]
[379481928,1755312641747,-500.0,0.00018773,2]
[379481930,1755312641757,-500.0,0.00018773,2]
[379481932,1755312641766,-500.0,0.00018773,2]
[379481934,1755312641776,-500.0,0.00018773,2]
[379481936,1755312641787,-500.0,0.00018773,2]
[379481938,1755312641797,-500.0,0.00018773,2]
[379481940,1755312641806,-500.0,0.00018773,2]
[379481942,1755312641815,-159.97578656,0.00018773,2]
[379481944,1755312641825,-500.0,0.00018773,2]
[379481946,1755312641834,-500.0,0.00018773,2]
[379481948,1755312641843,-500.0,0.00018773,2]
[379481950,1755312641853,-500.0,0.00018773,2]
[379481952,1755312641862,-2118.96191488,0.00018777,2]
[379481954,1755312641872,-221.0,0.00018778,2]
[379481956,1755312641882,-995.0,0.00018779,2]
[379481958,1755312641891,-2027.3,0.00018779,2]
[379481960,1755312641900,-164.19957238,0.00018783,2]
[379481962,1755312641909,-158.60210434,0.00018785,2]
[379481964,1755312641919,-176.49099772,0.00018785,2]
[379481966,1755312641928,-5579.910421,0.00018787,2]
[379481968,1755312641938,-374.0631746,0.00018787,2]
[379481970,1755312641947,-343.39286386,0.00018788,2]
[379481972,1755312641956,-345.06040996,0.0001879,2]
[379481974,1755312641965,-201.09549266,0.00018791,2]
[379481975,1755312641976,-153.41786878,0.00018791,2]
[379481978,1755312641985,-226.69789937,0.00018791,2]
[379481980,1755312641995,-382.73970584,0.00018791,2]
[379481982,1755312642006,-150.0,0.00018791,2]
[379481984,1755312642015,-2078.49076768,0.00018791,2]
[379481986,1755312642026,-150.0,0.00018791,2]
[379481987,1755312642036,-582.03467531,0.00018791,2]
[379481988,1755312642045,-150.0,0.00018791,2]
[379481989,1755312642054,-5639.07312368,0.00018791,2]
[379481990,1755312642063,-150.0,0.00018791,2]
[379481991,1755312642072,-52744.45060762,0.00018791,2]
[379481992,1755312642084,-150.0,0.00018791,2]
[379481993,1755312642093,-6197.75990813,0.00018791,2]
[379481994,1755312642103,-84855.4418968,0.00018791,2]
[379481995,1755312642112,-633.0,0.00018792,2]
[379481996,1755312642122,-309.061292,0.00018793,2]
[379481997,1755312642131,-381.44858198,0.00018793,2]
[379481998,1755312642141,-858.45957393,0.00018793,2]
[379481999,1755312642150,-223.79296731,0.00018793,2]
[379482000,1755312642160,-150.53146338,0.00018794,2]
[379482002,1755312642169,-230.89698546,0.00018794,2]
[379482004,1755312642179,-216.62398632,0.00018796,2]
[379482006,1755312642190,-202.38312534,0.00018796,2]
[379482009,1755312642200,-343.39286386,0.00018796,2]
[379482011,1755312642210,-1387.76841277,0.00018797,2]
[379482013,1755312642219,-46373.90880425,0.00018797,2]
[379482015,1755312642228,-176.49099772,0.00018797,2]
[379482017,1755312642238,-1243.99639617,0.00018798,2]
[379482019,1755312642249,-597.80034342,0.00018798,2]
[379482020,1755312642259,-202.2793456,0.00018798,2]
[379482022,1755312642269,-46373.90880425,0.00018799,2]
[379482024,1755312642279,-1714.36147465,0.000188,2]
[379482026,1755312642288,-2000.0,0.000188,2]
[379482028,1755312642298,-2000.0,0.000188,2]
[379482030,1755312642307,-2000.0,0.000188,2]
[379482032,1755312642316,-2000.0,0.000188,2]
[379482034,1755312642325,-14089.4508895,0.000188,2]
[379482036,1755312642334,-1000.0,0.000188,2]
[379482039,1755312642344,-840.0,0.000188,6]
[379482040,1755312642353,-2027.3,0.00018804,2]
[379482042,1755312642362,-150.0,0.00018808,2]
[379482044,1755312642374,-1007.98333568,0.00018811,2]
[379482046,1755312642387,-168.32942288,0.00018814,2]
[379482048,1755312642397,-205.725996,0.00018822,2]
[379482050,1755312642406,-205.725996,0.00018822,2]
[379482052,1755312642418,-151.0,0.00018822,2]
[379482054,1755312642427,-156.174721,0.00018822,2]
[379482056,1755312642437,-403.48097,0.00018822,2]
[379482058,1755312642446,-156.174721,0.00018822,2]
[379482060,1755312642456,-403.48097,0.00018822,2]
[379482062,1755312642465,-151.0,0.00018822,2]
[379482064,1755312642474,-151.0,0.00018822,2]
[379482066,1755312642483,-466.273602,0.00018822,2]
[379482068,1755312642493,-466.273602,0.00018822,2]
[379482070,1755312642502,-151.703453,0.00018822,2]
[379482072,1755312642514,-150.0,0.00018824,2]
[379482074,1755312642523,-150.0,0.00018826,2]
[379482076,1755312642532,-345.06040996,0.00018826,2]
[379482078,1755312642541,-2027.3,0.00018828,2]
[379482080,1755312642551,-167.79092521,0.00018833,2]
[379482083,1755312642565,-14089.4508895,0.00018833,2]
[379482084,1755312642574,-360.631697,0.00018844,2]
[379482086,1755312642584,-360.631697,0.00018844,2]
[379482089,1755312642594,-300.0,0.00018845,2]
[379482091,1755312642608,-2027.3,0.00018853,2]
[379482094,1755312642622,-168.0,0.00018855,2]
[379482096,1755312642635,-1007.98333568,0.00018856,2]
[379482098,1755312642646,-151.03,0.00018856,2]
[379482100,1755312642656,-150.0,0.00018856,2]
[379482103,1755312642669,-150.0,0.00018856,2]
[379482105,1755312642681,-168.32942288,0.00018857,2]
[379482107,1755312642694,-345.06040996,0.00018863,2]
[379482110,1755312642707,-14089.4508895,0.00018867,2]
[379482112,1755312642721,-168.0,0.00018869,2]
[379482115,1755312642734,-150.0,0.00018873,2]
[379482117,1755312642746,-2500.0,0.00018874,3]
[379482119,1755312642759,-3960.43156494,0.00018877,2]
[379482121,1755312642770,-2027.3,0.00018877,2]
[379482124,1755312642782,-2500.0,0.00018882,3]
[379482126,1755312642795,-233.0,0.00018886,2]
[379482128,1755312642808,-3584.86961913,0.00018887,2]
[379482131,1755312642821,-2503.0,0.0001889,5]
[379482133,1755312642833,-213.58,0.0001889,2]
[379482136,1755312642846,-213.58,0.0001889,2]
[379482138,1755312642860,-213.58,0.0001889,2]
[379482140,1755312642873,-213.58,0.0001889,2]
[379482142,1755312642885,-213.58,0.0001889,2]
[379482145,1755312642898,-213.58,0.0001889,2]
[379482147,1755312642911,-357.63726735,0.0001889,2]
[379482149,1755312642925,-1099.406768,0.00018891,2]
[379482152,1755312642936,-1099.406768,0.00018891,2]
[379482154,1755312642949,-299.422574,0.00018891,2]
[379482156,1755312642963,-299.422574,0.00018891,2]
[379482158,1755312642977,-2500.0,0.00018891,3]
[379482161,1755312642990,-205.725996,0.00018894,2]
[379482163,1755312643004,-205.725996,0.00018894,2]
[379482166,1755312643015,-151.0,0.00018896,2]
[379482168,1755312643027,-151.0,0.00018896,2]
[379482170,1755312643038,-150.0,0.00018896,2]
[379482172,1755312643048,-1801.69358124,0.00018899,2]
[379482174,1755312643059,-1801.6935812,0.00018899,2]
[379482177,1755312643070,-1801.6935812,0.00018899,2]